Cogmind - Beta 11.1 @@@ ROGUE MODE // 2022.12.11 @ 04:43:48 Player: Infomantis Result: Destroyed by P-80 Master with Gamma Rifle Performance ------------- Evolutions (7) 3500 Regions Visited (22) 4400 Robots Destroyed (217) 1085 Value Destroyed (9884) 9884 Prototype IDs (71) 1420 Alien Tech Used (0) 0 Bonus (6861) 6861 TOTAL SCORE: 27150 Bonus ------- High Alert Combat Kills 576 Follower Combat Kills 1969 Entered Garrisons 800 Used RIF Installer 2000 Network Hubs Disabled 400 Aligned with FarCom 300 Met Zhirov 300 Built Enhanced Grunts 300 A7 Reached Mainframe 300 Met R17 at Cetus 500 Friendly Fire -584 Cogmind --------- Core Integrity 0/1300 Matter 58/300 Energy 98/100 System Corruption 20% Temperature Cool (0) Movement Core (50) Location -3/Research Parts ------- > --- POWER (3) -------- (None) > --- PROPULSION (6) --- (None) > --- UTILITY (10) ----- Advanced Hacking Suite > --- WEAPON (2) ------- (None) > --- INVENTORY (5) ---- Huge Storage Unit Improved Phase Shifter Long-range Tractor Beam Micro-nuke Launcher Advanced Remote Datajack Peak State ------------ > --- POWER ------------ Micro Fission Core Light Antimatter Reactor > --- PROPULSION ------- Advanced Medium Treads Advanced Medium Treads Advanced Medium Treads Armored Wheel Improved Gyrokinetic Inverter > --- UTILITY ---------- Advanced Heat Sink Huge Storage Unit Advanced Gravity Neutralizer Advanced Targeting Computer Improved Target Analyzer Advanced Transmission Jammer Graphene Brace Relay Coupler [Sentry] > --- WEAPON ----------- Railgun Heavy Gauss Cannon > --- INVENTORY -------- Improved Energy Well Improved Medium Armor Plating Improved Medium Armor Plating Point Defense Array Relay Coupler [NC] Relay Coupler [Swarmer] Relay Coupler [Swarmer] Relay Coupler [Grunt] Relay Coupler [Sentry] Relay Coupler [Hunter] Relay Coupler [Hunter] Relay Coupler [Hunter] Improved Trap Extractor Improved Recalibrator Advanced Drone Bay Guided Plasma Cannon Micro-nuke Launcher Improved Remote Datajack Improved Remote Datajack Power Sword Kinetic Spear [Rating: 108] Favorites ----------- Power Improved Ion Engine Engine Improved Ion Engine Power Core Micro Fission Core Reactor Light Antimatter Reactor Propulsion Light Treads Treads Light Treads Leg Improved VSS Leg Wheel Armored Wheel Hover Unit Improved Antigrav System Utility Large Storage Unit Device Advanced Heat Sink Storage Large Storage Unit Processor Advanced Targeting Computer Hackware Relay Coupler [Sentry] Protection Light Armor Plating Weapon Minigun Energy Gun Gatling Laser Energy Cannon Heavy Plasma Cannon Ballistic Gun Minigun Ballistic Cannon Flak Cannon Launcher Rocket Launcher Special Weapon Improved Remote Datajack Slashing Weapon Power Sword Piercing Weapon Kinetic Spear Special Melee Weapon Datajack Build | -11 -10 -10 -9 -9 -9 -8 -8 -8 -8 -8 -7 -6 -6 -6 -6 -6 -5 -5 -5 -5 -4 -3 ------- Run | Scr Mat Min Mat Min Exi Min Mat Gar Mat Gar Fac Fac Ext Cet Arc Hub Fac Gar Fac Gar Fac Res Slots Evolved 14 | . . . 2 . . . 2 . . . 2 2 . . . . 2 . . . 2 2 Power 2 | . . . . . . . . . . . . 1 . . . . 1 . . . . . Propulsion 4 | . . . 1 . . . . . . . 1 . . . . . 1 . . . . 1 Utility 8 | . . . 1 . . . 2 . . . 1 1 . . . . . . . . 2 1 Weapon . | . . . . . . . . . . . . . . . . . . . . . . . Parts Attached 432 | 7 4 10 11 7 5 2 13 21 28 11 26 33 27 12 7 15 9 23 35 18 48 60 Power 38 | 1 1 2 . 1 . . . 1 2 . 1 3 3 3 1 1 1 3 5 1 3 5 Engine 20 | 1 1 2 . 1 . . . 1 2 . 1 3 2 . 1 . 1 2 1 . . 1 Core 9 | . . . . . . . . . . . . . 1 . . 1 . 1 4 1 1 . Reactor 9 | . . . . . . . . . . . . . . 3 . . . . . . 2 4 Propulsion 79 | 2 2 1 3 . . . 3 4 5 3 3 6 1 1 3 3 2 3 6 6 9 13 Treads 46 | . 2 1 3 . . . 3 4 5 3 2 4 . 1 . 1 1 . 3 3 5 5 Leg 14 | 2 . . . . . . . . . . . . . . 2 2 1 3 1 . . 3 Wheel 15 | . . . . . . . . . . . 1 2 1 . . . . . 2 3 3 3 Hover 4 | . . . . . . . . . . . . . . . 1 . . . . . 1 2 Flight . | . . . . . . . . . . . . . . . . . . . . . . . Utility 142 | 2 1 3 2 2 . . 7 6 8 4 14 13 8 1 2 6 4 7 7 5 18 22 Device 54 | 1 . 3 . 1 . . 2 1 2 . 4 4 3 . 1 4 3 1 3 1 9 11 Storage 9 | 1 1 . . . . . . . . . 1 . . . . 1 . 1 2 . . 2 Processor 13 | . . . 1 . . . . . . . 3 2 1 . . . . . . 1 2 3 Hackware 24 | . . . . . . . 2 1 2 2 1 . 1 . . . 1 5 1 2 1 5 Protection 42 | . . . 1 1 . . 3 4 4 2 5 7 3 1 1 1 . . 1 1 6 1 Artifact . | . . . . . . . . . . . . . . . . . . . . . . . Weapon 173 | 2 . 4 6 4 5 2 3 10 13 4 8 11 15 7 1 5 2 10 17 6 18 20 Energy Gun 8 | . . . . . . . . . . . . 3 3 . . . . . 2 . . . Energy Cannon 31 | . . . . . 1 . . . . . . 1 1 1 . 1 1 6 6 4 5 4 Ballistic Gun 55 | 2 . 3 4 2 3 1 2 7 5 2 1 5 4 . . 2 1 . 3 1 4 3 Ballistic Cannon 12 | . . . . . . . . . 2 . 4 . 1 2 . . . . . . 1 2 Launcher 19 | . . . 2 2 . 1 . . 2 . . . 1 2 . 1 . 1 2 . 2 3 Special Weapon 19 | . . . . . . . . . . . . . 1 2 1 . . 3 4 1 3 4 Impact Weapon . | . . . . . . . . . . . . . . . . . . . . . . . Slashing Weapon 3 | . . . . . . . . . . . . . . . . . . . . . 1 2 Piercing Weapon 4 | . . . . . . . . . . . . . . . . . . . . . 2 2 Special Melee Weapon 22 | . . 1 . . 1 . 1 3 4 2 3 2 4 . . 1 . . . . . . Unidentified Prototypes 8 | . . . . 1 . . . . . . . 1 . 1 . 1 1 . 2 . 1 . Corrupted Parts 3 | . . . . . . . . . . . . . . 2 . . . . 1 . . . System Corruption 22 | . . . . . . . . . . . . . . 19 . . . . 3 . . . Parts Lost 84 | . . . . 1 . . . 4 1 . 1 3 3 . 7 . 1 3 14 1 12 33 Power 16 | . . . . 1 . . . . . . . . 1 . 2 . . . 4 . 3 5 Propulsion 28 | . . . . . . . . . . . 1 . . . 2 . . 1 6 1 5 12 Utility 28 | . . . . . . . . 3 1 . . 2 2 . 3 . 1 2 2 . 1 11 Weapon 12 | . . . . . . . . 1 . . . 1 . . . . . . 2 . 3 5 Highest Loss Streak 12 | . . . . 1 . . . 2 1 . 1 1 1 . 7 . 1 1 8 1 7 12 To Critical Strikes 1 | . . . . . . . . . . . . . . . . . . . . 1 . . Average Slot Usage (%) 93 | . 100 99 100 99 100 100 99 97 99 98 91 89 91 91 81 90 96 97 89 96 97 67 Engine 7 | . 14 13 11 11 11 11 9 9 9 9 7 11 6 3 1 6 8 12 7 . . . Core 2 | . . . . . . . . . . . . . 4 . . 1 5 3 5 13 10 . Reactor 1 | . . . . . . . . . . . . . . 8 10 . . . . . 4 2 Treads 17 | . 23 27 33 33 33 33 27 27 26 27 18 12 11 6 4 5 2 . 3 13 10 5 Leg 2 | . 4 . . . . . . . . . . . . . 2 17 25 28 16 1 . 2 Wheel 3 | . . . . . . . . . . . 3 6 6 11 4 . . . 1 11 13 3 Device 10 | . 14 14 4 . . . 3 9 10 9 15 15 17 13 14 21 16 17 8 5 14 13 Storage 8 | . 14 14 11 11 11 11 9 9 9 9 7 6 6 6 6 10 11 6 6 5 5 7 Processor 7 | . . . 6 11 11 11 9 9 9 9 7 6 6 13 11 6 5 5 5 5 7 7 Hackware 4 | . . . . . . . 8 . . 2 7 1 1 . . . . 5 15 17 13 10 Protection 8 | . . . 11 10 11 11 14 15 15 14 6 13 12 13 8 3 5 . . 4 4 . Energy Cannon 1 | . . . . . . . . . . . . . . 5 6 8 6 9 4 4 5 1 Ballistic Gun 9 | . 28 26 21 14 12 21 17 17 9 7 7 4 5 . . 1 3 . 2 6 3 1 Ballistic Cannon 1 | . . . . . . . . . 6 9 6 . . 5 4 . . . . . . . Naked Turns 4 | . . . . . . . . . . . . . . . . . . . . . . 4 Heaviest Build 143 | 13 30 35 39 39 38 38 45 45 48 48 43 53 73 97 97 75 87 89 118 136 143 121 Greatest Support 108 | 20 40 40 60 60 60 60 60 60 63 63 63 58 40 40 58 88 103 108 108 36 90 86 Greatest Overweight (x) 12 | . . 1 . . . . . . . . 1 1 2 3 3 . . . 6 5 9 12 Average Overweight (x) . | . . . . . . . . . . . . . 1 2 1 . . . . 3 2 4 Largest Inventory Capacity 25 | 8 15 15 15 15 15 15 15 15 15 15 15 15 15 15 15 15 15 15 25 25 25 25 Average Capacity 16 | 7 13 15 15 15 15 15 15 15 15 15 15 15 15 15 15 15 15 15 16 25 25 20 Most Carried 25 | 8 15 15 15 15 15 15 15 15 15 15 15 15 15 15 15 15 15 15 23 25 25 25 Average Carried 16 | 5 11 14 14 14 15 15 14 14 14 14 14 14 14 14 14 14 14 14 15 24 24 17 Final Capacity 25 | 8 15 15 15 15 15 15 15 15 15 15 15 15 15 15 15 15 15 15 25 25 25 5 Final Carried 25 | 8 14 15 15 15 15 15 15 15 15 15 15 15 15 15 14 15 15 15 23 25 21 5 Class Distribution -------------------- 38% | Scavenger-Mutant 28% | Mutant 13% | Botlord-Mutant 7% | Bothacker-Mutant 5% | Scavenger-Skirmisher Dominant Class ---------------- Mutant | -10/Materials Mutant | -10/Mines Mutant | -9/Materials Mutant | -9/Mines Mutant | -9/Exiles Mutant | -8/Mines Scavenger-Mutant | -8/Materials Scavenger-Mutant | -8/Garrison Scavenger-Mutant | -8/Materials Scavenger-Mutant | -8/Garrison Mutant | -7/Factory Scavenger-Mutant | -6/Factory Scavenger-Skirmisher | -6/Extension Scavenger-Mutant | -6/Cetus Scavenger-Mutant | -6/Archives Scavenger-Mutant | -6/Hub_04(d) Scavenger-Mutant | -5/Factory Scavenger-Mutant | -5/Garrison Bothacker-Mutant | -5/Factory Botlord-Mutant | -5/Garrison Botlord-Mutant | -4/Factory Botlord-Assassin | -3/Research Resources | -11 -10 -10 -9 -9 -9 -8 -8 -8 -8 -8 -7 -6 -6 -6 -6 -6 -5 -5 -5 -5 -4 -3 ----------- Run | Scr Mat Min Mat Min Exi Min Mat Gar Mat Gar Fac Fac Ext Cet Arc Hub Fac Gar Fac Gar Fac Res Matter Collected 7877 | 330 35 205 336 217 . 15 454 738 605 377 259 646 390 250 150 193 70 331 524 294 488 970 Remotely 356 | . . . . . . . . . . . . . . . . . . . . . . 356 Salvage Created 9198 | 143 50 67 472 272 . 18 436 832 308 360 259 574 220 107 244 367 387 663 922 983 674 840 Parts 464 | 8 9 10 37 17 . 4 32 35 29 19 18 27 8 3 7 14 20 22 36 34 38 37 Haulers Intercepted 2 | . . . 1 . . . 1 . . . . . . . . . . . . . . . Recyclers Shooed 14 | 1 . . . 2 . . . . 1 . 1 . 1 . . . . . 4 . . 4 Parts Field Recycled . | . . . . . . . . . . . . . . . . . . . . . . . Retrieved Matter . | . . . . . . . . . . . . . . . . . . . . . . . Parts Self-Destructed . | . . . . . . . . . . . . . . . . . . . . . . . Prevented . | . . . . . . . . . . . . . . . . . . . . . . . Kills | -11 -10 -10 -9 -9 -9 -8 -8 -8 -8 -8 -7 -6 -6 -6 -6 -6 -5 -5 -5 -5 -4 -3 ------- Run | Scr Mat Min Mat Min Exi Min Mat Gar Mat Gar Fac Fac Ext Cet Arc Hub Fac Gar Fac Gar Fac Res Combat Hostiles Destroyed 168 | . 1 3 15 10 . 4 10 19 13 10 4 8 4 1 1 3 6 11 9 11 12 13 Melee 4 | . . . . . . . . . . . . . . . . . . . . . 2 2 Guns 75 | . 1 3 11 3 . . 10 19 4 1 2 8 4 . . . . . 6 2 . 1 Cannons 53 | . . . . . . . . . 6 9 2 . . 1 . 1 5 7 2 8 7 5 AOE 28 | . . . 4 7 . 4 . . 3 . . . . . 1 . . 4 . . 1 4 Classes Destroyed 18 | 2 3 1 4 3 . . 1 1 . . 1 . . . . . . . . 1 . 1 Worker 10 | . . . 1 . . 1 . . . . 2 . . . . . 1 . . . 3 2 Builder 9 | . . . 1 2 . . . . . . . 1 . . . 1 . . 2 . 1 1 Tunneler 4 | 4 . . . . . . . . . . . . . . . . . . . . . . Hauler 2 | . . . 1 . . . 1 . . . . . . . . . . . . . . . Recycler 12 | 1 . . . 1 . . . . . . 2 2 . . . 1 . . 3 . . 2 Mechanic 1 | . . . . . . . . . . . . . . . . . . . . . . 1 Operator 3 | . 1 . 1 . . . 1 . . . . . . . . . . . . . . . Watcher 6 | . 1 . . . . . . . . . . . . 1 . 2 1 . 1 . . . Swarmer 45 | . 1 2 9 3 . 4 3 7 7 . . 4 . . . . . 1 3 . 1 . Grunt 55 | . . 1 4 5 . . 3 9 4 8 1 . 1 . 1 . 4 10 1 3 . . Brawler 3 | . . . . . . . . 1 . 1 . . . . . . . . . 1 . . Duelist 4 | . . . . 1 . . . . . 1 . . . . . . . . . . 2 . Sentry 26 | . . . 2 . . . 3 2 2 1 1 2 2 . . 2 . . 4 3 1 1 Hunter 14 | . . . . . . . 1 . . . . 1 1 . . . . . . 3 1 7 Programmer 20 | . . . . . . . . . . . 2 1 . . . 1 2 1 1 . 7 5 Behemoth 1 | . . . . . . . . . . . . . . . . . . . . 1 . . Cetus Guard 1 | . . . . . . . . . . . . . . 1 . . . . . . . . Zionite 1 | . . . . 1 . . . . . . . . . . . . . . . . . . Assembled 1 | . . . . 1 . . . . . . . . . . . . . . . . . . Best Kill Streak 8 | 3 2 2 5 8 . 5 6 4 3 5 3 3 1 2 1 3 8 5 4 3 5 5 Combat Bots Only 6 | . 1 2 4 5 . 4 6 4 3 5 1 2 1 1 1 1 6 5 3 3 3 5 Max Kills in Single Turn 5 | 1 1 1 3 3 . 3 1 2 2 1 1 1 1 1 1 3 2 5 1 1 2 1 Gunslinging 1 | . . . 1 . . . . 1 . . . . . . . . . . . . . . Exploded 4 | . . . 3 2 . 3 . . 2 . . . . . 1 . . 4 . . 1 1 Melee 1 | . . . . . . . . . . . . . . . . . . . . . 1 1 Uniques/NPCs Destroyed . | . . . . . . . . . . . . . . . . . . . . . . . Combat | -11 -10 -10 -9 -9 -9 -8 -8 -8 -8 -8 -7 -6 -6 -6 -6 -6 -5 -5 -5 -5 -4 -3 -------- Run | Scr Mat Min Mat Min Exi Min Mat Gar Mat Gar Fac Fac Ext Cet Arc Hub Fac Gar Fac Gar Fac Res Damage Taken 16963 | . 6 181 401 323 . 61 322 848 393 401 249 515 537 606 1761 343 667 651 1671 246 2586 4195 Core 3066 | . 6 49 82 31 . 7 37 88 35 26 33 113 44 92 186 84 81 30 353 36 349 1304 Absorbed by Shields 1415 | . . . . . . . 78 325 66 271 58 . 259 84 . . 138 136 . . . . Regen/Repaired (Parts) 401 | . . . . . . . . . 106 . . . . . . . . . . . 182 113 Core Remaining (%) 70 | 100 . 78 . . . 70 . . . 66 95 . . . . 38 . . . 50 69 . Volleys Fired 878 | 10 6 9 32 26 . 3 24 115 30 26 20 32 24 17 78 35 29 37 56 100 81 88 Largest 2 | 2 2 2 2 2 . 1 2 2 2 2 2 2 2 2 1 2 2 2 2 2 2 2 Hottest 330 | 40 40 43 48 48 . 30 50 48 69 69 69 120 108 147 90 125 125 125 330 120 125 135 Shots Fired 1255 | 20 12 18 60 27 . 3 48 163 54 47 40 50 44 30 77 47 54 52 91 103 101 114 Gun 608 | 20 12 18 56 12 . . 48 163 31 23 20 49 42 . . 6 6 . 39 12 22 29 Cannon 551 | . . . . . . . . . 19 24 20 1 . 26 73 39 48 39 43 88 72 59 Launcher 45 | . . . 4 15 . 3 . . 4 . . . 1 1 . 2 . 1 . . 2 12 Special 51 | . . . . . . . . . . . . . 1 3 4 . . 12 9 3 5 14 Kinetic 628 | 20 12 18 56 12 . . 48 163 50 47 40 20 20 13 . 6 6 . 15 12 26 44 Thermal 531 | . . . . . . . . . . . . 30 22 13 73 39 48 39 67 88 68 44 Explosive 43 | . . . 4 15 . 3 . . 4 . . . . . . 2 . 1 . . 2 12 Electromagnetic 2 | . . . . . . . . . . . . . 1 1 . . . . . . . . Robot Hit Streak 30 | 3 3 4 7 9 . . 12 30 16 15 10 10 19 12 12 19 15 28 18 15 16 9 Robot Miss Streak 8 | 3 2 3 4 2 . . 2 3 8 4 3 4 3 3 2 2 1 2 4 2 2 3 Penetration Max 1 | . . . . . . . . . . . . 1 1 . . . 1 . 1 . . 1 Secondary Targets 3 | . . . 2 . . . . 1 . . . . . . . . . . . . . . Max Gunslinging Chain 1 | . . . 1 . . . . 1 . . . . . . . . . . . . . . Shots Hit Robots 853 | 8 5 9 35 18 4 . 41 141 41 46 36 44 58 17 30 20 37 32 70 27 49 85 Core Hits 478 | 6 3 5 23 23 . 6 22 62 34 44 23 30 23 4 5 8 12 27 24 29 25 40 Critical Kills 12 | . 1 . . . . . 1 . . 1 . . . 1 2 1 1 . 2 1 . 1 Critical Parts Destroyed 7 | . . 1 . . . . 1 . . . . 1 . 2 . . . . . . . 2 Critical Strikes 28 | . 1 1 . . . . 2 . . 1 . 3 . 4 2 1 1 . 2 1 . 9 Burn 2 | . . . . . . . . . . . . 2 . . . . . . . . . . Meltdown 5 | . . . . . . . . . . . . . . . 2 . 1 . 1 . . 1 Destroy 15 | . 1 1 . . . . 2 . . 1 . 1 . 4 . 1 . . 1 1 . 2 Blast 4 | . . . . . . . . . . . . . . . . . . . . . . 4 Sever 1 | . . . . . . . . . . . . . . . . . . . . . . 1 Impale 1 | . . . . . . . . . . . . . . . . . . . . . . 1 Melee Attacks 79 | . . . . . 4 . . 4 6 7 3 2 20 . . 1 . . . . 3 29 Impact . | . . . . . . . . . . . . . . . . . . . . . . . Slashing 19 | . . . . . . . . . . . . . . . . . . . . . . 19 Piercing 13 | . . . . . . . . . . . . . . . . . . . . . 3 10 Sneak Attacks 28 | . . . . . 4 . . . . . 2 . 20 . . 1 . . . . . 1 Combat Hostiles . | . . . . . . . . . . . . . . . . . . . . . . . Follow-up Attacks 3 | . . . . . . . . . . . . . . . . . . . . . . 3 Damage Inflicted 27142 | 114 65 126 942 1039 . 370 637 1914 899 890 676 947 960 539 885 1171 1691 1577 2080 3223 2462 3935 Guns 8773 | 114 65 126 582 185 . . 637 1914 293 298 338 947 960 . . 151 149 . 847 192 407 568 Cannons 12473 | . . . . . . . . . 392 586 335 . . 539 885 505 1140 1122 1189 3031 1359 1390 Explosions 5002 | . . . 360 854 . 370 . . 214 . . . . . . 484 383 455 . . 587 1295 Melee 783 | . . . . . . . . . . . . . . . . . . . . . 103 680 Ramming 111 | . . . . . . . . . . 6 3 . . . . 31 19 . 44 . 6 2 Kinetic 8893 | 114 65 126 582 185 . . 637 1914 685 884 673 339 339 216 . 151 149 . 274 192 441 927 Thermal 12736 | . . . . . . . . . . . . 608 621 323 885 505 1523 1122 1762 3031 1325 1031 Explosive 4135 | . . . 360 854 . 370 . . 214 . . . . . . . . 455 . . 587 1295 Electromagnetic 484 | . . . . . . . . . . . . . . . . 484 . . . . . . Impact . | . . . . . . . . . . . . . . . . . . . . . . . Slashing 409 | . . . . . . . . . . . . . . . . . . . . . . 409 Piercing 374 | . . . . . . . . . . . . . . . . . . . . . 103 271 Highest Corruption 22 | . . . . . . . . 7 7 7 2 3 3 22 22 17 4 4 9 9 6 19 Average Corruption 6 | . . . . . . . . 7 7 7 1 2 3 7 16 15 3 4 5 9 4 5 Corruption Purged 7 | . . . . . . . . . . . . . . . 7 . . . . . . . Corruption Blocked . | . . . . . . . . . . . . . . . . . . . . . . . Effects 283 | . . . . . . . . 21 30 21 1 3 22 11 32 20 2 14 23 36 22 25 Message Errors 63 | . . . . . . . . 3 6 5 . 2 3 5 10 2 . 1 9 4 6 7 Matter Fused 75 | . . . . . . . . 7 7 5 1 . 7 3 8 4 . 5 8 8 6 6 Heat Flow Errors 33 | . . . . . . . . 2 5 2 . 1 4 . 2 4 1 1 2 6 . 3 Energy Discharges 30 | . . . . . . . . 1 3 3 . . 3 1 2 6 . 2 . 5 2 2 Parts Rejected 1 | . . . . . . . . . . . . . 1 . . . . . . . . . Data Loss (minor) 36 | . . . . . . . . 4 7 2 . . 1 1 5 . . 1 4 5 4 2 Data Loss (major) 17 | . . . . . . . . 2 . . . . 2 1 2 1 . 2 . 3 1 3 Misfires 7 | . . . . . . . . . . . . . . . 1 1 1 1 . 2 1 . Alerts 3 | . . . . . . . . 1 . 1 . . . . . . . 1 . . . . Misdirections 2 | . . . . . . . . . . . . . . . . . . . . . . 2 Weapon Failures 16 | . . . . . . . . 1 2 3 . . 1 . 2 2 . . . 3 2 . Overload Shots 1 | . . . . . . . . . . . . . . . . . . . 1 . . . Overflow Damage 687 | . . . 21 . . 41 . . 28 . . . . . 102 17 102 6 37 80 66 187 Projectiles 398 | . . . . . . . . . . . . . . . 102 14 25 6 37 80 20 114 Explosions 204 | . . . 21 . . 41 . . 28 . . . . . . . 77 . . . 16 21 Melee 85 | . . . . . . . . . . . . . . . . 3 . . . . 30 52 Knockbacks 49 | . . . . . . . . . 24 10 7 . . 2 . . 1 . . . 1 4 Impact 1 | . . . . . . . . . . . . . . . . . 1 . . . . . Kinetic 45 | . . . . . . . . . 22 10 7 . . 2 . . . . . . 1 3 Secondary 3 | . . . . . . . . . 2 . . . . . . . . . . . . 1 Self-Inflicted Damage 358 | . . . 17 81 . 21 . . . . . . . . . 46 . . . . 193 . Shots 10 | . . . 1 4 . 1 . . . . . . . . . 1 . . . . 3 . Rammed 5 | . . . . . . . . . . 1 2 . . . . . . . . . 1 1 Targets Rammed 11 | . . . . . . . . . . 1 2 . . . . 2 1 . 3 . 1 1 Kicked 6 | . . . . . . . . . . . . . . . . 2 1 . 3 . . . Crushed . | . . . . . . . . . . . . . . . . . . . . . . . Highest Temperature 367 | . . 10 20 12 . . 33 272 233 246 61 217 248 138 232 207 206 140 213 367 156 283 Average Temperature 62 | . . 5 8 7 . . 11 52 37 60 23 27 51 41 41 82 90 89 99 114 41 92 Received Heat Transfer 2280 | . . 84 138 48 . . 87 369 102 180 58 . 154 90 33 54 146 149 264 45 75 204 Effects 3 | . . . . . . . . . . . . . . . . . . . . 3 . . Energy Bleed 1 | . . . . . . . . . . . . . . . . . . . . 1 . . Interference 2 | . . . . . . . . . . . . . . . . . . . . 2 . . Siege Activations . | . . . . . . . . . . . . . . . . . . . . . . . Robots Corrupted . | . . . . . . . . . . . . . . . . . . . . . . . Combat Hostiles . | . . . . . . . . . . . . . . . . . . . . . . . Parts Fried 5 | . . . . . . . . . . . . . 1 . . 4 . . . . . . Impact Corruptions 2 | . . . . . . . . . . . . . . . . 1 . . 1 . . . Robots Melted 11 | . . . . . . . . . . . . . . . 2 2 1 . 1 2 2 1 Combat Hostiles 8 | . . . . . . . . . . . . . . . . 2 1 . 1 1 2 1 Parts Melted 49 | . . . 1 . . . . . . . . 3 4 . 7 5 2 1 8 8 8 2 Heat Transferred 21590 | . . . . . . . . . . . . 1456 1425 500 1400 750 2000 1763 2670 6168 2250 1208 Parts Sabotaged . | . . . . . . . . . . . . . . . . . . . . . . . Parts Stolen . | . . . . . . . . . . . . . . . . . . . . . . . Parts Stripped . | . . . . . . . . . . . . . . . . . . . . . . . Power Chain Reactions 1 | . . . . . . . . . . . . . . . . 1 . . . . . . Missiles Intercepted . | . . . . . . . . . . . . . . . . . . . . . . . Alert | -11 -10 -10 -9 -9 -9 -8 -8 -8 -8 -8 -7 -6 -6 -6 -6 -6 -5 -5 -5 -5 -4 -3 ------- Run | Scr Mat Min Mat Min Exi Min Mat Gar Mat Gar Fac Fac Ext Cet Arc Hub Fac Gar Fac Gar Fac Res Peak Influence 797 | 25 79 166 685 524 . 107 273 633 437 631 376 145 512 539 175 797 528 720 564 620 392 189 Initial 378 | . 16 7 64 267 . . 41 123 308 284 331 65 14 172 135 42 291 369 378 207 325 179 Average 251 | 9 59 24 403 411 . 81 150 387 329 502 222 83 224 262 114 177 347 602 407 414 210 88 Maximum Alert Level 3 | . . . 2 2 . . 1 2 2 2 1 . 2 2 . 3 2 3 2 2 1 . Low Security (%) 48 | 100 100 100 18 . . 100 68 13 . . 60 100 47 49 100 84 . . . . 51 100 Level 1 28 | . . . 18 36 . . 31 40 82 12 39 . 36 30 . 2 79 10 50 47 48 . Level 2 22 | . . . 62 63 . . . 46 17 87 . . 16 20 . 9 20 74 49 52 . . Level 3 . | . . . . . . . . . . . . . . . . 2 . 14 . . . . Level 4 . | . . . . . . . . . . . . . . . . . . . . . . . Level 5 . | . . . . . . . . . . . . . . . . . . . . . . . High Security . | . . . . . . . . . . . . . . . . . . . . . . . Max Security . | . . . . . . . . . . . . . . . . . . . . . . . Squads Dispatched 35 | . 1 . 3 . . . 2 . 2 . . 2 1 . . 1 3 . 7 . 7 6 Investigation 9 | . . . 3 . . . 2 . . . . 1 . . . . . . . . 3 . Extermination 11 | . . . . . . . . . . . . 1 . . . 1 1 . 2 . 3 3 Reinforcement 10 | . 1 . . . . . . . 1 . . . 1 . . . 1 . 2 . 1 3 Assault . | . . . . . . . . . . . . . . . . . . . . . . . Garrison 5 | . . . . . . . . . 1 . . . . . . . 1 . 3 . . . Intercept . | . . . . . . . . . . . . . . . . . . . . . . . Searches Triggered . | . . . . . . . . . . . . . . . . . . . . . . . Construction Impeded 4 | . . . . . . . . . . . . . . . . . 1 . . . . 3 Haulers Reinforced . | . . . . . . . . . . . . . . . . . . . . . . . Active Scanning Responses . | . . . . . . . . . . . . . . . . . . . . . . . Cargo Convoy Interrupts . | . . . . . . . . . . . . . . . . . . . . . . . Alert ID Control Effect 4 | . . . . . . . . . . . . . . . . . . . 2 . 1 1 Stealth | -11 -10 -10 -9 -9 -9 -8 -8 -8 -8 -8 -7 -6 -6 -6 -6 -6 -5 -5 -5 -5 -4 -3 --------- Run | Scr Mat Min Mat Min Exi Min Mat Gar Mat Gar Fac Fac Ext Cet Arc Hub Fac Gar Fac Gar Fac Res Distress Signals 12 | . 1 . 2 . . . . . 1 . . . . 2 . 1 . . 1 . . 4 Communications Jammed 131 | . . . . . . . . . . . . 2 1 125 . . 3 . . . . . Distress Signals 131 | . . . . . . . . . . . . 2 1 125 . . 3 . . . . . Times Spotted 344 | . 3 6 30 10 . 4 17 23 24 15 5 10 20 13 24 4 12 20 26 8 27 43 Peak Tracking Total 16 | . 2 3 6 3 . 4 6 4 4 5 1 2 3 5 16 3 4 7 5 4 5 10 Tactical Retreats 12 | . . . 1 . . . . 2 . . . . . . . 1 1 . 4 1 1 1 Traps | -11 -10 -10 -9 -9 -9 -8 -8 -8 -8 -8 -7 -6 -6 -6 -6 -6 -5 -5 -5 -5 -4 -3 ------- Run | Scr Mat Min Mat Min Exi Min Mat Gar Mat Gar Fac Fac Ext Cet Arc Hub Fac Gar Fac Gar Fac Res Traps Triggered 26 | . . 1 . . . . 2 1 1 . . 7 5 . . 2 1 . . 3 2 1 Indirectly 2 | . . . . . . . . . . . . . . . . 2 . . . . . . Trap Hack Attempts 123 | . . 25 . . . . 4 19 17 . 58 . . . . . . . . . . . Triggered . | . . . . . . . . . . . . . . . . . . . . . . . Disarmed 7 | . . 1 . . . . 1 4 1 . . . . . . . . . . . . . Reprogrammed 10 | . . 2 . . . . . . 2 . 6 . . . . . . . . . . . Reused 1 | . . . . . . . . . . . . . . . . . . . . . . 1 Traps Extracted 10 | . . 2 . . . . . . . . 6 . . . . . . . . . . 2 Installed 5 | . . . . . . . . . . . 2 . . . . . . . . . . 3 Triggered 1 | . . . . . . . . . . . . . . . . . . . . . . 1 Most Traps Carried 6 | . . 2 2 2 2 2 2 2 2 2 6 6 6 6 6 6 6 6 6 6 6 6 Machines | -11 -10 -10 -9 -9 -9 -8 -8 -8 -8 -8 -7 -6 -6 -6 -6 -6 -5 -5 -5 -5 -4 -3 ---------- Run | Scr Mat Min Mat Min Exi Min Mat Gar Mat Gar Fac Fac Ext Cet Arc Hub Fac Gar Fac Gar Fac Res Machines Disabled 51 | . . . 1 1 . . . 2 . 2 . . 3 3 3 20 1 2 2 2 6 3 Max in Single Turn 10 | . . . 1 1 . . . 1 . 1 . . 1 1 1 10 1 1 1 1 3 1 Garrison Access 6 | . . . . . . . . . . . 2 2 . . . . . . . . 1 1 Garrison Relay 8 | . . . . . . . . 2 . 2 . . . . . . . 2 . 2 . . Network Hub 2 | . . . . . . . . . . . . . . . . 2 . . . . . . Machines Sabotaged . | . . . . . . . . . . . . . . . . . . . . . . . Garrisons Compromised . | . . . . . . . . . . . . . . . . . . . . . . . Overloaded Fab Kills . | . . . . . . . . . . . . . . . . . . . . . . . Hacking | -11 -10 -10 -9 -9 -9 -8 -8 -8 -8 -8 -7 -6 -6 -6 -6 -6 -5 -5 -5 -5 -4 -3 --------- Run | Scr Mat Min Mat Min Exi Min Mat Gar Mat Gar Fac Fac Ext Cet Arc Hub Fac Gar Fac Gar Fac Res Machines Accessed 69 | . 6 1 9 . 2 . 5 . 6 . 4 6 13 1 . . 3 . 2 . 8 3 Terminals 43 | . 6 . 8 . . . 3 . 4 . 1 2 13 1 . . . . 1 . 3 1 Fabricators 3 | . . . . . . . . . . . . 1 . . . . 1 . . . 1 . Repair Stations 4 | . . . . . . . . . 1 . . 1 . . . . . . . . 1 1 Recycling Units 3 | . . . 1 . . . . . . . . . . . . . 1 . . . 1 . Scanalyzers 3 | . . . . . . . 1 . . . 1 . . . . . . . . . 1 . Garrison Access 10 | . . . . . . . 1 . 1 . 2 2 . . . . 1 . 1 . 1 1 Total Hacks 211 | . 19 1 28 . 2 . 18 . 18 . 12 13 21 2 . . 12 . 3 . 51 11 Successful 119 | . 8 1 14 . 2 . 8 . 11 . 10 9 14 . . . 6 . 2 . 25 9 Failed 91 | . 11 . 14 . . . 9 . 7 . 2 4 7 2 . . 6 . 1 . 26 2 Catastrophic 15 | . 1 . 4 . . . . . . . 1 1 2 1 . . 1 . . . 3 1 Database Lockouts 1 | . . . . . . . 1 . . . . . . . . . . . . . . . Manual 70 | . 11 . 15 . 1 . 7 . 3 . . 5 4 1 . . 6 . . . 15 2 Terminals 107 | . 19 . 23 . . . 10 . 11 . 2 3 21 2 . . . . 2 . 10 4 Fabricators 14 | . . . . . . . . . . . . 5 . . . . 7 . . . 2 . Repair Stations 20 | . . . . . . . . . 6 . . 1 . . . . . . . . 8 5 Recycling Units 13 | . . . 5 . . . . . . . . . . . . . 4 . . . 4 . Scanalyzers 38 | . . . . . . . 6 . . . 7 . . . . . . . . . 25 . Garrison Access 16 | . . . . . . . 2 . 1 . 3 4 . . . . 1 . 1 . 2 2 Terminal Hacks 45 | . 6 1 10 . 2 . 5 . 4 . . 1 12 . . . . . 1 . 1 2 Record 1 | . . . . . 1 . . . . . . . . . . . . . . . . . Part Schematic 2 | . 1 . . . . . . . . . . . 1 . . . . . . . . . Robot Analysis 6 | . 2 . 1 . . . 2 . . . . . 1 . . . . . . . . . Prototype ID Bank 7 | . 2 . 2 . . . 1 . . . . 1 1 . . . . . . . . . Open Door 9 | . . 1 . . . . . . . . . . 8 . . . . . . . . . Branch Access Points 4 | . 1 . 1 . . . . . . . . . . . . . . . . . 1 1 Emergency Access Points 2 | . . . 1 . . . . . . . . . . . . . . . . . . 1 Terminal Index 2 | . . . 1 . . . . . 1 . . . . . . . . . . . . . Unreport Threat 1 | . . . . . . . . . . . . . 1 . . . . . . . . . Locate Traps 3 | . . . 2 . . . . . 1 . . . . . . . . . . . . . Hauler Manifests 2 | . . . 1 . . . 1 . . . . . . . . . . . . . . . Registered Components 2 | . . . . . . . . . 1 . . . . . . . . . 1 . . . Registered Prototypes 1 | . . . . . . . 1 . . . . . . . . . . . . . . . Zone Layout 2 | . . . 1 . . . . . 1 . . . . . . . . . . . . . EX-Prototype ID Bank 1 | . . . . . 1 . . . . . . . . . . . . . . . . . Fabricator Hacks 6 | . . . . . . . . . . . . 2 . . . . 3 . . . 1 . Network Status 2 | . . . . . . . . . . . . 1 . . . . 1 . . . . . Load Schematic 2 | . . . . . . . . . . . . 1 . . . . 1 . . . . . Build 2 | . . . . . . . . . . . . . . . . . 1 . . . 1 . Repair Station Hacks 12 | . . . . . . . . . 5 . . . . . . . . . . . 3 4 Scan Component 7 | . . . . . . . . . 3 . . . . . . . . . . . 2 2 Repair 5 | . . . . . . . . . 2 . . . . . . . . . . . 1 2 Recycling Unit Hacks 3 | . . . 2 . . . . . . . . . . . . . 1 . . . . . Report Inventory 2 | . . . 1 . . . . . . . . . . . . . 1 . . . . . Retrieve Components 1 | . . . 1 . . . . . . . . . . . . . . . . . . . Scanalyzer 22 | . . . . . . . 2 . . . 7 . . . . . . . . . 13 . Insert Component 10 | . . . . . . . 1 . . . 4 . . . . . . . . . 5 . Analyze 12 | . . . . . . . 1 . . . 3 . . . . . . . . . 8 . Garrison Access Hacks 15 | . . . . . . . 1 . 1 . 3 4 . . . . 1 . 1 . 2 2 Unlock Access 4 | . . . . . . . 1 . 1 . . . . . . . 1 . 1 . . . Seal Access 6 | . . . . . . . . . . . 2 2 . . . . . . . . 1 1 Coupler Status 5 | . . . . . . . . . . . 1 2 . . . . . . . . 1 1 Unauthorized Hacks 16 | . 2 . 2 . . . . . 1 . . 2 2 . . . 1 . . . 5 1 Terminals 5 | . 2 . . . . . . . 1 . . . 2 . . . . . . . . . Assimilate 1 | . 1 . . . . . . . . . . . . . . . . . . . . . Botnet 3 | . . . . . . . . . 1 . . . 2 . . . . . . . . . Operators 1 | . 1 . . . . . . . . . . . . . . . . . . . . . Fabricators 3 | . . . . . . . . . . . . 2 . . . . 1 . . . . . Prioritize 1 | . . . . . . . . . . . . . . . . . 1 . . . . . Haulers 1 | . . . . . . . . . . . . 1 . . . . . . . . . . Recompile 1 | . . . . . . . . . . . . 1 . . . . . . . . . . Repair Stations 2 | . . . . . . . . . . . . . . . . . . . . . 1 1 Mechanics 2 | . . . . . . . . . . . . . . . . . . . . . 1 1 Recycling Units 6 | . . . 2 . . . . . . . . . . . . . . . . . 4 . Monitor 1 | . . . . . . . . . . . . . . . . . . . . . 1 . Reject 1 | . . . . . . . . . . . . . . . . . . . . . 1 . Recyclers 1 | . . . . . . . . . . . . . . . . . . . . . 1 . Mask 2 | . . . 1 . . . . . . . . . . . . . . . . . 1 . Tunnel 1 | . . . 1 . . . . . . . . . . . . . . . . . . . Scanalyzers . | . . . . . . . . . . . . . . . . . . . . . . . Garrison Access . | . . . . . . . . . . . . . . . . . . . . . . . Data Cores Recovered 1 | . . . . . . . 1 . . . . . . . . . . . . . . . Used 1 | . . . . . . . 1 . . . . . . . . . . . . . . . Hacking Detections 45 | . 6 . 7 . . . 4 . 4 . 2 5 7 1 . . 2 . . . 5 2 Full Trace Events 7 | . . . 3 . . . 1 . . . . . . . . . . . . . 3 . Feedback Events . | . . . . . . . . . . . . . . . . . . . . . . . Feedback Blocked . | . . . . . . . . . . . . . . . . . . . . . . . Robot Schematics Acquired . | . . . . . . . . . . . . . . . . . . . . . . . Robots Built . | . . . . . . . . . . . . . . . . . . . . . . . Authchips . | . . . . . . . . . . . . . . . . . . . . . . . Time . | . . . . . . . . . . . . . . . . . . . . . . . Total Robot Build Rating . | . . . . . . . . . . . . . . . . . . . . . . . Part Schematics Acquired 9 | . 1 . . . . . 1 . . . 3 . 1 . . . . . . . 3 . Parts Built 3 | . . . . . . . . . . . . . . . . . 1 . . . 2 . Authchips 1 | . . . . . . . . . . . . . . . . . 1 . . . . . Time 141 | . . . . . . . . . . . . . . . . . 102 . . . 39 . Total Part Build Rating 22 | . . . . . . . . . . . . . . . . . 8 . . . 14 . Parts Repaired 5 | . . . . . . . . . 2 . . . . . . . . . . . 1 2 Time 174 | . . . . . . . . . 52 . . . . . . . . . . . 22 100 Parts Recycled . | . . . . . . . . . . . . . . . . . . . . . . . Recycled Matter . | . . . . . . . . . . . . . . . . . . . . . . . Retrieved Matter . | . . . . . . . . . . . . . . . . . . . . . . . Retrieved Components 5 | . . . 5 . . . . . . . . . . . . . . . . . . . Parts Scanalyzed 8 | . . . . . . . 1 . . . 3 . . . . . . . . . 4 . Part Schematics Acquired 7 | . . . . . . . 1 . . . 3 . . . . . . . . . 3 . Parts Damaged 2 | . . . . . . . 1 . . . . . . . . . . . . . 1 . Bothacking | -11 -10 -10 -9 -9 -9 -8 -8 -8 -8 -8 -7 -6 -6 -6 -6 -6 -5 -5 -5 -5 -4 -3 ------------ Run | Scr Mat Min Mat Min Exi Min Mat Gar Mat Gar Fac Fac Ext Cet Arc Hub Fac Gar Fac Gar Fac Res Used RIF Installer 4 | . . . . . . . . 1 . 1 . . . . . . . 1 . 1 . . Hotswap 1 | . . . . . . . . . . . . . . . . . . . . 1 . . Alert ID Control 1 | . . . . . . . . . . . . . . . . . . 1 . . . . Structural Interface 1 | . . . . . . . . . . 1 . . . . . . . . . . . . Robots Hacked 53 | . . . . . 4 . . 2 3 4 2 2 2 2 3 1 . 7 5 2 4 10 Non-combat 12 | . . . . . 3 . . . . . 1 . . . . 1 . . 1 . 4 2 Combat 41 | . . . . . 1 . . 2 3 4 1 2 2 2 3 . . 7 4 2 . 8 Robot Hacks Applied 55 | . . . . . 4 . . 3 3 4 2 2 2 2 3 1 . 7 5 2 4 11 parse_system 10 | . . . . . 4 . . . . . . . 1 2 3 . . . . . . . no_distress 2 | . . . . . . . . . . . . . . . . . . . . . 1 1 start_evac 1 | . . . . . . . . . . . 1 . . . . . . . . . . . ignore_repairs 2 | . . . . . . . . . . . . . . . . 1 . . . . . 1 purge_threat 1 | . . . . . . . . . . . . . . . . . . . . . 1 . map_route 3 | . . . . . . . . . . . . . . . . . . . 1 . 2 . find_shortcuts 1 | . . . . . . . . 1 . . . . . . . . . . . . . . overload_power 1 | . . . . . . . . . . . . . . . . . . . . . . 1 amplify_resonance 4 | . . . . . . . . . . . . . 1 . . . . 1 1 . . 1 reboot_system 4 | . . . . . . . . . . . . 2 . . . . . . 2 . . . go_dormant 1 | . . . . . . . . . . . 1 . . . . . . . . . . . overwrite_iff 11 | . . . . . . . . 2 . 2 . . . . . . . 2 . . . 5 streamctrl_high 2 | . . . . . . . . . . 1 . . . . . . . . 1 . . . formatsys_high 12 | . . . . . . . . . 3 1 . . . . . . . 4 . 2 . 2 Relay Couplers Released 41 | . . . . . . . . 9 . 8 . 2 . . . . . 10 . 9 3 . Machine Destruction 41 | . . . . . . . . 9 . 8 . 2 . . . . . 10 . 9 3 . Attached 20 | . . . . . . . . 1 2 2 1 . 1 . . . . 5 1 2 1 4 Fabnet Peak Effective % . | . . . . . . . . . . . . . . . . . . . . . . . Robots Rewired 10 | . . . . . . . . . . . . . 9 1 . . . . . . . . Allies Hacked . | . . . . . . . . . . . . . . . . . . . . . . . Hacks Repelled . | . . . . . . . . . . . . . . . . . . . . . . . Allies | -11 -10 -10 -9 -9 -9 -8 -8 -8 -8 -8 -7 -6 -6 -6 -6 -6 -5 -5 -5 -5 -4 -3 -------- Run | Scr Mat Min Mat Min Exi Min Mat Gar Mat Gar Fac Fac Ext Cet Arc Hub Fac Gar Fac Gar Fac Res Total Allies 56 | . . 4 . 2 . . . 2 3 4 . . 20 6 . . . 6 1 2 . 6 Largest Group 13 | . . 4 3 2 . . . 1 2 2 . . 13 13 8 . . 4 4 2 2 2 Highest-Rated Group 734 | . . 71 40 46 . . . 16 30 45 . . 485 734 734 . . 122 122 78 78 112 Highest-Rated Ally 159 | . . 31 16 31 . . . 16 15 29 . . 159 143 143 . . 49 49 49 49 58 Total Orders 8 | . . . . . . . . . . . . . . 4 1 . . . . . 1 2 STAY 4 | . . . . . . . . . . . . . . 2 1 . . . . . 1 . FOLLOW 2 | . . . . . . . . . . . . . . 2 . . . . . . . . EXPLORE 1 | . . . . . . . . . . . . . . . . . . . . . . 1 RETURN 1 | . . . . . . . . . . . . . . . . . . . . . . 1 Ally Attacks 354 | . . 18 47 . . . . 4 23 13 . . 97 87 10 . . 2 28 5 9 11 Total Damage 8912 | . . 176 412 . . . . 44 377 240 . . 2587 3449 337 . . 30 600 101 159 400 Kills 59 | . . 3 7 . . . . . 4 2 . . 22 13 2 . . 1 2 . 1 2 Allies Corrupted 2 | . . . . 1 . . . . . . . . . . . . . . . . . 1 Allies Melted . | . . . . . . . . . . . . . . . . . . . . . . . Intel | -11 -10 -10 -9 -9 -9 -8 -8 -8 -8 -8 -7 -6 -6 -6 -6 -6 -5 -5 -5 -5 -4 -3 ------- Run | Scr Mat Min Mat Min Exi Min Mat Gar Mat Gar Fac Fac Ext Cet Arc Hub Fac Gar Fac Gar Fac Res Robot Analysis Total 6 | . 2 . 1 . . . 2 . . . . . 1 . . . . . . . . . Derelict Logs Recovered 4 | . . 3 . 1 . . . . . . . . . . . . . . . . . . Drone Launches 2 | . . . . . . . . . . . . . . . . . . . . . . 2 Drone Recoveries 2 | . . . . . . . . . . . . . . . . . . . . . . 2 Exploration | -11 -10 -10 -9 -9 -9 -8 -8 -8 -8 -8 -7 -6 -6 -6 -6 -6 -5 -5 -5 -5 -4 -3 ------------- Run | Scr Mat Min Mat Min Exi Min Mat Gar Mat Gar Fac Fac Ext Cet Arc Hub Fac Gar Fac Gar Fac Res Turns Passed 19116 | 182 488 1157 666 988 1080 297 719 1155 990 791 1174 864 1229 516 776 416 388 551 812 804 1590 1483 Spaces Moved 10234 | 115 284 659 320 572 666 178 324 446 446 411 669 546 771 311 291 196 284 357 448 333 958 649 Core 183 | 19 . . . . . . . . . . . . . . . . . . . . . 164 Treads 4665 | . 229 659 320 572 666 178 324 446 446 411 345 5 . . . . . . 6 . 6 52 Legs 1516 | 96 55 . . . . . . . . . . . . . 123 196 284 357 360 . . 45 Wheels 3869 | . . . . . . . . . . . 324 541 771 311 168 . . . 82 333 952 387 Hover 1 | . . . . . . . . . . . . . . . . . . . . . . 1 Flight . | . . . . . . . . . . . . . . . . . . . . . . . Fastest Speed 50 | 50 120 160 160 160 160 160 160 160 160 160 115 101 110 110 110 100 98 98 107 135 120 50 Average Speed 141 | 108 152 160 160 160 160 160 160 160 160 160 141 115 124 126 131 105 99 106 122 146 129 157 Slowest Speed 570 | 120 160 240 160 160 160 160 160 160 160 160 240 240 130 145 170 110 100 110 480 165 225 570 Overloaded Moves . | . . . . . . . . . . . . . . . . . . . . . . . Propulsion Burnouts . | . . . . . . . . . . . . . . . . . . . . . . . Robots Hopped 2 | . . 2 . . . . . . . . . . . . . . . . . . . . Cave-ins Triggered . | . . . . . . . . . . . . . . . . . . . . . . . Exploration Rate (%) 48 | 5 64 99 36 93 91 50 37 48 47 52 17 17 86 73 100 21 9 59 14 50 24 14 Regions Visited 22 Branch Regions 8 Pre-discovered Areas 4 | . . 1 1 1 1 . . . . . . . . . . . . . . . . . Known Exits Taken 8 | . 1 . 1 . . 1 1 . 1 . . . . . . 1 1 . 1 . . . Unknown Exits Taken 10 | 1 . 1 . 1 1 . . . . . 1 1 1 1 1 . . . . . 1 . Scrap Searched 7 | . . 3 . 3 . 1 . . . . . . . . . . . . . . . . Spaces Dug 96 | . . . 20 . . . . . . . . . . . 28 17 4 . 4 . 20 3 Terrain Destroyed 803 | . . . 37 95 . 12 . . 32 . . . . 6 32 382 19 5 11 1 73 98 Melee 2 | . . . . . . . . . . . . . . . . . . . . . . 2 Projectile 126 | . . . . . . . . . . . . . . 6 32 21 9 . 11 1 34 12 AOE 675 | . . . 37 95 . 12 . . 32 . . . . . . 361 10 5 . . 39 84 Terrain Rammed . | . . . . . . . . . . . . . . . . . . . . . . . Walls Destroyed . | . . . . . . . . . . . . . . . . . . . . . . . Machines Disabled . | . . . . . . . . . . . . . . . . . . . . . . . Actions | -11 -10 -10 -9 -9 -9 -8 -8 -8 -8 -8 -7 -6 -6 -6 -6 -6 -5 -5 -5 -5 -4 -3 --------- Run | Scr Mat Min Mat Min Exi Min Mat Gar Mat Gar Fac Fac Ext Cet Arc Hub Fac Gar Fac Gar Fac Res Total 13552 | 149 330 747 421 620 678 187 487 721 662 495 854 723 979 401 608 353 337 481 616 546 1205 952 Wait 1293 | 10 25 22 38 7 . 3 92 96 114 29 57 83 72 50 227 94 1 46 53 42 60 72 Move 10212 | 114 283 654 319 571 665 177 324 445 446 410 668 545 770 310 290 196 284 356 447 332 957 649 Hop 2 | . . 2 . . . . . . . . . . . . . . . . . . . . Pick Up 207 | 8 7 12 10 4 1 1 12 9 7 5 6 12 9 4 3 4 6 6 12 14 20 35 Fast Attach 142 | 7 . 3 . 2 2 . 1 4 4 . 8 16 6 3 4 9 2 8 15 5 15 28 Attach 62 | . 2 1 3 1 . . 5 1 3 2 1 7 2 . 2 1 3 1 3 . 8 16 Detach 13 | . 2 . . . . . 2 . . . . . . . . . 1 . 2 . . 6 Swap 229 | . 2 6 8 4 3 2 7 16 21 9 17 11 19 9 1 5 4 14 17 13 25 16 Drop 222 | . 3 13 11 5 3 1 16 12 11 5 12 15 17 8 3 7 6 11 8 16 27 12 Fire 878 | 10 6 9 32 26 . 3 24 115 30 26 20 32 24 17 78 35 29 37 56 100 81 88 Melee 76 | . . . . . 4 . . 4 6 7 3 2 20 . . 1 . . . . 3 26 Ram 1 | . . . . . . . . . . . . . . . . . . . . . 1 . Kick 5 | . . . . . . . . . . . . . . . . 1 1 . 3 . . . Crush 4 | . . . . . . . . . . 1 2 . . . . . . . . . . 1 Escape Stasis 74 | . . . . . . . . . . . . . 40 . . . . 2 . 24 8 . Rewire 4 | . . . . . . . . . 3 1 . . . . . . . . . . . . Trap 128 | . . 25 . . . . 4 19 17 . 60 . . . . . . . . . . 3 Miscellaneous . | . . . . . . . . . . . . . . . . . . . . . . . Route ------- -11/Scrapyard -10/Materials (discovered 5 exits: *Mat x3 / *Min x2) -10/Mines (discovered 2 exits: *Mat x2) -9/Materials (discovered 2 exits: Mat / *Min) -9/Mines (discovered 3 exits: *Mat x2 / *Exi) -9/Exiles (discovered 2 exits: [*Min x2]) -8/Mines -8/Materials (discovered 3 exits: *Fac / [*Sto] / Gar) -8/Garrison -8/Materials (discovered 2 exits: *Fac / Gar) -8/Garrison -7/Factory -6/Factory (discovered 3 exits: *Fac / *Low / *Ext) -6/Extension (discovered 3 exits: *Fac x2 / *Cet) -6/Cetus (discovered 2 exits: *Fac / [*Arc]) -6/Archives (discovered 3 exits: *Fac / [*Hub x2]) -6/Hub_04(d) -5/Factory -5/Garrison (discovered 2 exits: *Fac x2) -5/Factory (discovered 2 exits: [*Upp] / Gar) -5/Garrison -4/Factory (discovered 3 exits: *Res / *Upp x2) -3/Research (discovered 3 exits: Arm / Qua x2) History --------- Turn | Location | Event 4 | -11/Scrapyard | Discovered new exit (range 16) 183 | -11/Scrapyard | Entered Materials 306 | -10/Materials | Build established: Mutant 351 | -10/Materials | Discovered new exit (range 7) 478 | -10/Materials | Identified exit to Mines 514 | -10/Materials | Discovered new exit (range 4) 607 | -10/Materials | Discovered new exit (range 13) 671 | -10/Materials | Entered Mines 712 | -10/Mines | Met a Derelict who couldn't figure out how to use a Trap Extractor 964 | -10/Mines | Found a hidden stash of uninstalled traps 1049 | -10/Mines | Assisted by bots powering up and referring to "LRC-V3" 1192 | -10/Mines | Learned 4 Materials zone layouts 1210 | -10/Mines | Discovered new exit (range 8) 1259 | -10/Mines | Joined a pair of Derelicts in attacking an 0b10 outpost 1549 | -10/Mines | Received a Mining Laser from a helpful Derelict 1554 | -10/Mines | Learned Materials garrison access intel 1606 | -10/Mines | Learned location of Recycling (-8) 1782 | -10/Mines | Discovered new exit (range 5) 1828 | -10/Mines | Entered Materials 1828 | -9/Materials | Accompanied by 3 allies 1828 | -9/Materials | Evolved 2 slots: Propulsion x1, Utility x1 1829 | -9/Materials | Identified exit to Materials 2024 | -9/Materials | Identified exit to Mines 2494 | -9/Materials | Entered Mines 2538 | -9/Mines | Build established: Scavenger-Mutant 2594 | -9/Mines | A weapon hastily lodged in a ceiling crevice suddenly fell to the ground 2738 | -9/Mines | Deemed a non-threat by the Exiles lab entrance 2738 | -9/Mines | Discovered new exit (range 5) 2946 | -9/Mines | Build established: Mutant 3130 | -9/Mines | Discovered exit to Materials (range 10) 3168 | -9/Mines | Learned location of Zion (-6) 3325 | -9/Mines | Discovered exit to Materials (range 15) 3337 | -9/Mines | Excavation squad dispatched 3337 | -9/Mines | A large section of the Mines collapsed 3373 | -9/Mines | Found a damaged Exp. Sensor Array with a note attached 3377 | -9/Mines | Found Prototype Device 3377 | -9/Mines | Identified Exp. Sensor Array 3482 | -9/Mines | Entered Exiles 3508 | -9/Exiles | Discovered new exit (range 15) 3564 | -9/Exiles | Met 8R-AWN 3594 | -9/Exiles | Met EX-HEX 3674 | -9/Exiles | Met EX-DEC 3714 | -9/Exiles | Visited The Gauntlet 3949 | -9/Exiles | Met EX-BIN 4242 | -9/Exiles | Aligned with FarCom system 4244 | -9/Exiles | Given EX-Vault access code 4282 | -9/Exiles | Opened EX-Vault 4294 | -9/Exiles | Found Gui. Plasma Cannon 4339 | -9/Exiles | Warned to stay clear of 0b10 Research branches 4540 | -9/Exiles | Discovered new exit (range 14) 4562 | -9/Exiles | Left Exiles lab with Gui. Plasma Cannon 4562 | -9/Exiles | Entered Mines 4845 | -8/Mines | Discovered exit to Materials (range 8) 4859 | -8/Mines | Entered Materials 4859 | -8/Materials | Evolved 2 slots: Utility x2 4860 | -8/Materials | Loaded intel: 1 garrison access location 5220 | -8/Materials | Central database locked down 5253 | -8/Materials | Discovered new exit (range 16) 5360 | -8/Materials | Discovered new exit (range 16) 5509 | -8/Materials | Build established: Scavenger-Mutant 5578 | -8/Materials | Identified exit to Garrison 5578 | -8/Materials | Entered Garrison 5610 | -8/Garrison | Installed Relay Interface Framework 5938 | -8/Garrison | Garrison Relay disabled 5974 | -8/Garrison | Triggered checkpoint 5988 | -8/Garrison | Triggered checkpoint 6030 | -8/Garrison | Triggered checkpoint 6325 | -8/Garrison | Triggered checkpoint 6464 | -8/Garrison | Triggered checkpoint 6534 | -8/Garrison | Discovered new exit (range 10) 6584 | -8/Garrison | Triggered checkpoint 6619 | -8/Garrison | Garrison Relay disabled 6733 | -8/Garrison | Entered Materials 6847 | -8/Materials | Repaired Lgt. Treads 6875 | -8/Materials | Repaired Lgt. Armor Plating 7363 | -8/Materials | Discovered new exit (range 4) 7688 | -8/Materials | Garrison activated, responded to threat 7723 | -8/Materials | Identified exit to Garrison 7723 | -8/Materials | Entered Garrison 7723 | -8/Garrison | Accompanied by 1 ally 7852 | -8/Garrison | Triggered checkpoint 7866 | -8/Garrison | Garrison Relay disabled 7930 | -8/Garrison | Triggered checkpoint 8191 | -8/Garrison | Discovered new exit (range 10) 8219 | -8/Garrison | Expanded RIF knowledge: Structural Interface 8397 | -8/Garrison | Garrison Relay disabled 8514 | -8/Garrison | Entered Factory 8514 | -7/Factory | Evolved 2 slots: Propulsion x1, Utility x1 8734 | -7/Factory | Build established: Bothacker-Mutant 8818 | -7/Factory | Discovered new exit (range 7) 9405 | -7/Factory | Build established: Mutant 9688 | -7/Factory | Entered another Factory area 9688 | -6/Factory | Evolved 2 slots: Power x1, Utility x1 10074 | -6/Factory | Build established: Scavenger-Mutant 10140 | -6/Factory | Discovered new exit (range 11) 10151 | -6/Factory | Identified exit to Factory 10342 | -6/Factory | Discovered new exit (range 4) 10347 | -6/Factory | Identified exit to Lower Caves 10535 | -6/Factory | Discovered new exit (range 15) 10552 | -6/Factory | Entered Extension 10632 | -6/Extension | Rescued a captive Derelict 10633 | -6/Extension | Rescued a captive Derelict 10641 | -6/Extension | Build established: Scavenger-Skirmisher 10646 | -6/Extension | Rescued a captive Derelict 10698 | -6/Extension | Rescued A7 10785 | -6/Extension | Rescued a captive Derelict 10799 | -6/Extension | Rescued a captive Derelict 10858 | -6/Extension | Rescued a captive Derelict 10858 | -6/Extension | Rescued a captive Derelict 10885 | -6/Extension | Rescued a captive Derelict 10886 | -6/Extension | Rescued a captive Derelict 11203 | -6/Extension | Spotted B-75 Beast 11204 | -6/Extension | Allies destroyed B-75 Beast 11208 | -6/Extension | Spotted B-75 Beast 11228 | -6/Extension | Allies destroyed B-75 Beast 11292 | -6/Extension | Door terminal overloaded 11292 | -6/Extension | Discovered exit to Factory (range 11) 11407 | -6/Extension | Rescued a captive Derelict 11409 | -6/Extension | Rescued a captive Derelict 11522 | -6/Extension | Build established: Scavenger-Mutant 11740 | -6/Extension | Discovered exit to Factory (range 10) 11741 | -6/Extension | Discovered new exit (range 6) 11781 | -6/Extension | Entered Cetus 11781 | -6/Cetus | Accompanied by 13 allies (A7) 11786 | -6/Cetus | Acquired a Cetus Manufacturing Module code from A7 11796 | -6/Cetus | Spotted Cetus Guard 11796 | -6/Cetus | Spotted Cetus Guard 11799 | -6/Cetus | Spotted Cetus Guard 11801 | -6/Cetus | Spotted Cetus Guard 11814 | -6/Cetus | Allies destroyed Cetus Guard 11823 | -6/Cetus | Allies destroyed Cetus Guard 11830 | -6/Cetus | Destroyed Cetus Guard 11833 | -6/Cetus | Allies destroyed Cetus Guard 11912 | -6/Cetus | Door terminal overloaded 11923 | -6/Cetus | Escorted A7 to Cetus Mainframe 11932 | -6/Cetus | Started Cetus Manufacturing Module 11947 | -6/Cetus | Discovered new exit (range 15) 11957 | -6/Cetus | Manufactured an Enhanced Grunt 11982 | -6/Cetus | Manufactured an Enhanced Grunt 12007 | -6/Cetus | Manufactured an Enhanced Grunt 12032 | -6/Cetus | Manufactured an Enhanced Grunt 12047 | -6/Cetus | Spotted Cetus Guard 12047 | -6/Cetus | Spotted Cetus Guard 12053 | -6/Cetus | Spotted Cetus Guard 12057 | -6/Cetus | Manufactured an Enhanced Grunt 12059 | -6/Cetus | Spotted Cetus Guard 12063 | -6/Cetus | Discovered exit to Factory (range 15) 12065 | -6/Cetus | Allies destroyed Cetus Guard 12070 | -6/Cetus | Rewired Cetus Guard 12073 | -6/Cetus | Allies destroyed Cetus Guard 12073 | -6/Cetus | Allies destroyed Cetus Guard 12077 | -6/Cetus | Met Revision 17 12209 | -6/Cetus | System corruption reached 10% 12297 | -6/Cetus | Entered Archives 12297 | -6/Archives | Accompanied by 8 allies (A7) 12302 | -6/Archives | Received a hacking code to weaken MAIN.C 12692 | -6/Archives | Discovered exit to Factory (range 5) 12823 | -6/Archives | Discovered new exit (range 7) 12853 | -6/Archives | Met Zhirov 12859 | -6/Archives | Reinforcements dispatched to Archives 12904 | -6/Archives | Reinforcements dispatched to Archives 12906 | -6/Archives | Zhirov warped through subspace 12924 | -6/Archives | Zhirov detonated Archives 12925 | -6/Archives | Core integrity fell below 50% 12955 | -6/Archives | Lost 7 parts (2p2n3u) 13022 | -6/Archives | Discovered new exit (range 16) 13073 | -6/Archives | Entered Hub_04(d) 13261 | -6/Hub_04(d) | Discovered exit to Factory (range 4) 13437 | -6/Hub_04(d) | Network Hub disabled 13461 | -6/Hub_04(d) | Network Hub disabled 13489 | -6/Hub_04(d) | Entered Factory 13489 | -5/Factory | Evolved 2 slots: Power x1, Propulsion x1 13600 | -5/Factory | Fabricated Exp. Sensor Array? 13826 | -5/Factory | Garrison activated, responded to threat 13877 | -5/Factory | Identified exit to Garrison 13877 | -5/Factory | Entered Garrison 14004 | -5/Garrison | Garrison Relay disabled 14095 | -5/Garrison | Triggered checkpoint 14154 | -5/Garrison | Discovered new exit (range 7) 14206 | -5/Garrison | Triggered checkpoint 14270 | -5/Garrison | Discovered new exit (range 12) 14287 | -5/Garrison | Expanded RIF knowledge: Alert ID Control 14328 | -5/Garrison | Triggered checkpoint 14348 | -5/Garrison | Garrison Relay disabled 14428 | -5/Garrison | Entered Factory 14428 | -5/Factory | Accompanied by 4 allies 14627 | -5/Factory | Discovered new exit (range 27) 14667 | -5/Factory | Build established: Bothacker-Mutant 14733 | -5/Factory | Lost 3 parts (2n1w) 14913 | -5/Factory | Found Prototype Launcher 14913 | -5/Factory | Identified Mni. Smartbomb Launcher 15091 | -5/Factory | Lost 8 parts (3p3n1u1w) 15172 | -5/Factory | Identified exit to Garrison 15240 | -5/Factory | Entered Garrison 15248 | -5/Garrison | Expanded RIF knowledge: Hotswap 15284 | -5/Garrison | Garrison Relay disabled 15335 | -5/Garrison | Spotted B-75 Beast 15531 | -5/Garrison | Destroyed B-75 Beast 15615 | -5/Garrison | Triggered checkpoint 15635 | -5/Garrison | Build established: Botlord-Mutant 15846 | -5/Garrison | Triggered checkpoint 15980 | -5/Garrison | Garrison Relay disabled 16018 | -5/Garrison | Discovered new exit (range 14) 16044 | -5/Garrison | Entered Factory 16044 | -4/Factory | Accompanied by 2 allies 16044 | -4/Factory | Evolved 2 slots: Utility x2 16577 | -4/Factory | Repaired Imp. Medium Armor Plating 16702 | -4/Factory | Discovered new exit (range 14) 16744 | -4/Factory | Identified exit to Upper Caves 16926 | -4/Factory | Fabricated Adv. Medium Treads? 17473 | -4/Factory | Lost 7 parts (2p2n1u2w) 17626 | -4/Factory | Discovered new exit (range 7) 17634 | -4/Factory | Entered Research 17634 | -3/Research | Evolved 2 slots: Propulsion x1, Utility x1 17664 | -3/Research | Lost 5 parts (1p3n1w) 17748 | -3/Research | Lost 4 parts (1p3u) 18130 | -3/Research | Build established: Botlord-Assassin 18276 | -3/Research | Lost 4 parts (3n1u) 18431 | -3/Research | Lost 4 parts (1n2u1w) 18671 | -3/Research | Lost 8 parts (1p2n3u2w) 18887 | -3/Research | Repaired Micro-nuke Launcher 18926 | -3/Research | Repaired Lrn. Tractor Beam 19021 | -3/Research | System corruption reached 10% 19028 | -3/Research | Core integrity fell below 50% 19028 | -3/Research | Released all parts (6) 19057 | -3/Research | Lost 12 parts (2p6n2u2w) 19059 | -3/Research | Identified exit to Armory 19059 | -3/Research | Identified exit to Quarantine 19061 | -3/Research | Core integrity fell below 20% 19117 | -3/Research | Destroyed by P-80 Master with Gamma Rifle Last Messages --------------- 19052_ JK>L LP=KBXRBY>QX DTHA2S8QLJW, 2KK#= 19059_ Connecting with Terminal... >>Access(Branch) Found 3 branch access points: (43,111) Armory (95,69) Quarantine (181,139) Quarantine Map updated. 19059_ Connecting with Terminal... >>Access(Emergency) Found 1 emergency access door: (129,99) Map updated. 19059_ Connecting with Terminal... 19068_ System corrupted: Matter fused (-9). 19088_ Penetrated by Slug. 19088_ Slug penetrates Wall. 19092_ JXW00AHIPT3LULDY6LDKJ 19094_ Slug penetrates Wall. 19107_ System corrupted: Matter fused (-9). Map ----- +----------------------------------------------------+ | ?????????????????????????????????????????????????? | | ?????????????????????????????????????????????????? | | ?????????????????????????????????????????????????? | | ?????????????????????????????????????????????????? | | ?????????????????????????????????????????????????? | | ?????????????????????????????????????????????????? | | ?????????????????????????????????????????????????? | | ?????????????????????????????????????????????????? | | ?????????????????????????????????????????????????? | | ?????????????????????????????????????????????????? | | ??????????????????????????????????############???? | | ??????????????????????????????????# #???? | | ??????????????????????????????????# #?? | | ??????????????????????????????????# #?? | | ????????????????BB?>??????????????? #?? | | ????????????????BB??????????????????? * #?? | | ??????????????????????????????????????? #?? | | ????????????????????????????????????????? #?? | | ????????????????????????????????###########+#####+ | | ????????????????????????????????# | | ????????????????????????????????# | | ????????????????????????????????# | | ????????????????????????????????# | | ????????????????????????????????# ####### | | ???????????????????????########## # ## | | ???????????????????????# @ p ## | | ???????????????????????# ################p |# | | ???????????????????????# #???????## ####p # | | ???????????????????????# #??????## ##p # | | ???????????????????????# #?????## #]]! # | | ???????????????????????# #?????# #]! #= | | ???????????????????????# #?????# ]! # | | ???????????????????????# #?????# ] # ### | | ???????????????????????# #?????# #####?# | | ???????????????????????# #?????# #?????# | | ?????????????##????????# #?????# ###?????# | | ?????????? #### ############+########## | | ?????????? g gg | | ?????????? w | | ?????????? ##################### | | ???????????########???????????????????### | | ??????????????????????????????????????#" | | ??????????????????????????????????????#""[! | | ??????????????????????????????????????#""!! | | ??????????????????????????????????????#""!! | | ??????????????????????????????????????#"" | | ??????????????????????????????????????#"T | | ??????????????????????????????????????#"" | | ??????????????????????????????????????#"" """ | | ??????????????????????????????????????#"" """ | +----------------------------------------------------+ Best States ------------- Heat Dissipation 117 Energy Generation 45 Energy Capacity 1440 Matter Stores 300 Matter Capacity 300 Sight Range 16 Terrain Scan Range 24 Terrain Scan Density 85 Jamming Range 16 Additional Mass Support 16 Armor Coverage 450 Resistance: TH 10 Evasion (%) 55 Targeting Accuracy 8 Target Analysis 11 Armor Integrity Analysis 30 Recoil Reduction 3 Kinecelleration 40 Offensive Hacking 20 Relay Coupler Types 4 Relay Coupler Value 97 Authchip Count 1 Trap Extractor Capacity 6 Item Schematics ----------------- Huge Storage Unit | -10/Materials | Hacked Exp. Sensor Array | -8/Materials | Scanalyzed Imp. Trap Extractor | -7/Factory | Scanalyzed Trap Scanner | -7/Factory | Scanalyzed Datajack | -7/Factory | Scanalyzed Adv. Terrain Scanner | -6/Extension | Hacked Mni. Smartbomb Launcher | -4/Factory | Scanalyzed Imp. Medium Armor Plating | -4/Factory | Scanalyzed Adv. Drone Bay | -4/Factory | Scanalyzed Robot Schematics ------------------ None Fabricated ------------ Exp. Sensor Array | x1 | -5/Factory | Authchip Adv. Medium Treads | x2 | -4/Factory | Preloaded Alien Tech Used ----------------- None Achievements -------------- Just Shoot The Terminal Challenges ------------ None Game ------ Seed SpikedNullFlail Manual? 0 Play Time 05:07:56 Cumulative 281.1 hours Start 2022.11.29 @ 12:54:15 End 2022.12.11 @ 04:43:48 Sessions 5 Manual Loads 0 Difficulty Rogue Special Mode None Game No. 191 Rogue 168 Adventurer 6 Explorer 17 Win Type - Total 21 Types 14/0/3/1/0/1/1/1/0 Lore% 94 Gallery% 93 Achievement% 75 Wizard Run 0 Options --------- ASCII 0 Keyboard 0 Movement Numpad Keybinds 0 Fullscreen 1 Font 12/Fuzzy Map View 83x54 Tactical HUD 1 Map Filters NONE Filters NONE Steam 1 RUN: 89b5d80b-2eff-4bfb-82c5-920da38fd3b9